lending/lending_fUSD_20241005
["ID","MTS","AMOUNT","RATE_DAILY","PERIOD"]
[339872815,1728101432704,-150.0,0.00027033,2]
[339872816,1728101432713,-2832.1,0.00027045,2]
[339872817,1728101432722,-763.04,0.00027081,2]
[339872818,1728101432732,-250.0,0.0002717,2]
[339872819,1728101432742,-1852.42,0.00027206,2]
[339872820,1728101432751,-287.05,0.00027231,2]
[339872821,1728101432761,-750.0,0.00027397,2]
[339872822,1728101432770,-1000.0,0.00027472,2]
[339872823,1728101432780,-187.78,0.00027492,2]
[339872824,1728101432789,-252.99,0.00027568,2]
[339872825,1728101432798,-245.26,0.0002758,2]
[339872826,1728101432807,-763.0,0.000276,3]
[339872827,1728101432816,-167.5,0.00027616,2]
[339872828,1728101432826,-300.0,0.00027658,2]
[339872829,1728101432835,-175.36,0.00027772,120]
[339872830,1728101432844,-223.43,0.00028184,2]
[339872831,1728101432853,-150.0,0.00028405,2]
[339872832,1728101432862,-650.0,0.00029,2]
[339872833,1728101432871,-160.03,0.00029016,30]
[339872834,1728101432880,-300.0,0.00029028,2]
[339872836,1728101432889,-1000.0,0.00029193,2]
[339872838,1728101432898,-180.0,0.00029566,120]
[339872840,1728101432907,-150.0,0.00029777,2]
[339872841,1728101432916,-252.99,0.00029832,2]
[339872843,1728101432925,-600.0,0.0003,120]
[339872845,1728101432934,-1000.0,0.00030136,2]
[339872847,1728101432943,-190.7,0.00030341,120]
[339872849,1728101432952,-2048.0,0.00031,48]
[339872851,1728101432963,-700.0,0.00031,2]
[339872853,1728101432975,-710.6021245,0.00031067,2]
[339872855,1728101432984,-150.0,0.00031149,2]
[339872857,1728101432993,-160.03,0.00031654,30]
[339872859,1728101433003,-252.99,0.00032096,2]
[339872861,1728101433012,-1221.48,0.00032232,30]
[339872863,1728101433021,-503.4288004,0.000324,2]
[339872864,1728101433030,-1000.0,0.00032437,2]
[339872865,1728101433039,-150.0,0.00032521,2]
[339872866,1728101433048,-500.0,0.0003284,5]
[339872867,1728101433057,-500.0,0.0003284,5]
[339872868,1728101433067,-500.0,0.00032876,2]
[339872869,1728101433076,-1500.0,0.00032877,50]
[339872870,1728101433085,-750.0,0.00033,2]
[339872871,1728101433094,-190.7,0.00033713,120]
[339872872,1728101433104,-150.0,0.00033893,2]
[339872873,1728101433113,-721.38,0.000342,10]
[339872874,1728101433122,-424.38888601,0.0003421,5]
[339872875,1728101433131,-1000.0,0.0003421,5]
[339872876,1728101433140,-252.99,0.00034359,2]
[339872877,1728101433149,-150.0,0.00034372,2]
[339872878,1728101433158,-175.36,0.00034714,120]
[339872880,1728101433167,-800.0,0.00035,2]
[339872881,1728101433177,-200.0,0.00035235,3]
[339872882,1728101433187,-150.0,0.00035265,2]
[339872883,1728101433196,-4000.0,0.00035659,28]
[339872884,1728101433206,-1000.0,0.00035681,2]
[339872885,1728101433219,-955.3697294,0.00035999,7]
[339872886,1728101433228,-423.4,0.00036319,2]
[339872887,1728101433239,-1525.13,0.00036319,2]
[339872888,1728101433249,-423.4,0.00036319,2]
[339872889,1728101433386,-150.84,0.00036319,2]
[339872890,1728101433399,-151.82,0.00036456,2]
[339872891,1728101433409,-263.09,0.00036456,2]
[339872892,1728101433419,-305.74,0.00036456,2]
[339872893,1728101433428,-860.74,0.00036456,2]
[339872894,1728101433437,-692.36,0.00036456,2]
[339872895,1728101433446,-252.99,0.00036623,2]
[339872896,1728101433456,-150.0,0.00036637,2]
[339872897,1728101433468,-1736.78,0.00036804,2]
[339872898,1728101433477,-150.0,0.00037,2]
[339872899,1728101433486,-850.0,0.00037,2]
[339872900,1728101433496,-190.7,0.00037084,120]
[339872901,1728101433506,-534.05,0.00037282,2]
[339872902,1728101433515,-534.05,0.00037282,2]
[339872903,1728101433525,-534.05,0.00037282,2]
[339872904,1728101433534,-534.05,0.00037282,2]
[339872905,1728101433544,-534.05,0.00037282,2]
[339872906,1728101433553,-533.7,0.00037282,2]
[339872907,1728101433563,-305.31,0.00037282,2]
[339872908,1728101433572,-150.0,0.00037282,2]
[339872909,1728101433582,-150.0,0.00037282,2]
[339872910,1728101433592,-150.0,0.00037282,2]
[339872911,1728101433601,-300.0,0.00037282,2]
[339872912,1728101433611,-1072.6,0.00037282,2]
[339872913,1728101433620,-686.98,0.00037284,2]
[339872914,1728101433630,-534.0,0.00037284,2]
[339872915,1728101433640,-534.05,0.00037284,2]
[339872916,1728101433648,-534.05,0.00037284,2]
[339872917,1728101433658,-534.05,0.00037284,2]
[339872918,1728101433667,-534.0,0.00037284,2]
[339872919,1728101433677,-181.3,0.00037396,2]
[339872920,1728101433686,-7515.8861,0.000379,2]
[339872921,1728101433695,-394.9553,0.000379,2]
[339872922,1728101433705,-157.65324008,0.0003791,120]
[339872923,1728101433714,-1958.86068705,0.0003791,15]
[339872924,1728101433723,-642.28649013,0.00037973,5]
[339872925,1728101433732,-825.0,0.00038,5]
[339872926,1728101433742,-25000.0,0.00038,60]
[339872927,1728101433751,-150.0,0.00038009,2]
[339872928,1728101433760,-1000.0,0.00038082,14]
[339872929,1728101433770,-1000.0,0.00038082,14]
[339872930,1728101433779,-1000.0,0.00038082,14]
[339872931,1728101433788,-1000.0,0.00038082,14]
[339872932,1728101433797,-1015.97290681,0.00038082,14]
[339872933,1728101433807,-252.99,0.00038887,2]
[339872934,1728101433816,-2500.0,0.00038911,5]
[339872935,1728101433825,-1000.0,0.00038924,2]
[339872936,1728101433834,-500.0,0.00039,120]
[339872937,1728101433844,-900.0,0.00039,2]
[339872938,1728101433853,-500.0,0.00039065,120]
[339872939,1728101433862,-1958.86068697,0.00039242,15]
[339872940,1728101433871,-150.0,0.00039382,2]
[339872941,1728101433880,-4507.8,0.0003945,117]
[339872942,1728101433889,-157.65324005,0.00039492,120]
[339872943,1728101433899,-575.89585642,0.00039616,20]
[339872944,1728101433911,-302.66,0.0004,120]
[339872945,1728101433920,-223.43,0.00040262,2]
[339872946,1728101433929,-343.747666,0.00040364,120]
[339872947,1728101433939,-150.088,0.00040427,30]
[339872948,1728101433947,-190.7,0.00040455,120]
[339872949,1728101433957,-1958.86068697,0.00040574,15]
[339872950,1728101433966,-150.0,0.00040754,2]
[339872951,1728101433975,-150.0,0.00040896,120]
[339872952,1728101433985,-500.0,0.00041,120]
[339872953,1728101433994,-950.0,0.00041,2]
[339872954,1728101434003,-157.65324005,0.00041073,120]
[339872955,1728101434012,-157.0,0.00041096,2]
[339872956,1728101434022,-252.99,0.00041151,2]
[339872957,1728101434031,-175.36,0.00041657,120]
[339872958,1728101434040,-1958.86068697,0.00041907,15]
[339872959,1728101434049,-500.0,0.00042,120]
[339872960,1728101434058,-946.4678,0.00042,2]
[339872961,1728101434068,-12083.66930234,0.000425,60]
[339872962,1728101434077,-150.0,0.00042559,30]
[339872963,1728101434086,-157.65324005,0.00042655,120]
[339872964,1728101434097,-508.11462739,0.00043163,30]
[339872965,1728101434107,-500.0,0.00043163,30]
[339872966,1728101434118,-500.0,0.00043163,30]
[339872967,1728101434127,-1958.86068697,0.00043239,15]
[339872968,1728101434136,-252.99,0.00043415,2]
[339872969,1728101434145,-150.0,0.00044,57]
[339872970,1728101434155,-157.65324005,0.00044237,120]
[339872971,1728101434164,-500.0,0.00044259,30]
[339872972,1728101434173,-500.0,0.00044259,30]
[339872973,1728101434183,-500.0,0.00044521,120]
[339872974,1728101434192,-500.0,0.00044521,120]
[339872975,1728101434201,-1958.86068697,0.00044571,15]
[339872976,1728101434211,-799.0,0.0004465,30]
[339872977,1728101434220,-174.34,0.00045047,120]
[339872978,1728101434229,-5012.40852,0.00045119,30]
[339872979,1728101434241,-500.0,0.00045355,30]
[339872980,1728101434250,-500.0,0.00045355,30]
[339872981,1728101434259,-252.99,0.00045679,2]
[339872982,1728101434268,-157.65324005,0.00045818,120]
[339872983,1728101434278,-1958.86068697,0.00045903,15]
[339872984,1728101434287,-500.0,0.00045943,10]
[339872985,1728101434297,-10000.0,0.00046,30]
[339872986,1728101434307,-806.15873261,0.00046,120]
[339872987,1728101434316,-2337.20491991,0.00046064,120]
[339872988,1728101434325,-500.0,0.00046451,30]
[339872989,1728101434335,-521.22392282,0.00046451,30]
[339872990,1728101434343,-1498.39587548,0.00046475,18]
[339872991,1728101434352,-189.76715464,0.00046475,28]
[339872992,1728101434361,-217.0,0.00046475,2]
[339872993,1728101434370,-50182.4595,0.00046475,120]
[339872994,1728101434379,-43194.3431042,0.00046565,8]
[339872995,1728101434389,-176.86,0.00046565,2]
[339872996,1728101434400,-500.1129358,0.00046573,10]
[339872997,1728101434409,-500.53368223,0.00046573,10]
[339872998,1728101434419,-500.0,0.00046575,120]
[339872999,1728101434429,-500.0,0.00046575,120]
[339873000,1728101434439,-500.0,0.00046575,120]
[339873001,1728101434448,-500.0,0.00046575,120]
[339873002,1728101434457,-500.0,0.00046575,120]
[339873003,1728101434467,-500.0,0.00046575,120]
[339873004,1728101434476,-500.0,0.00046575,120]
[339873005,1728101434485,-500.0,0.00046575,120]
[339873006,1728101434495,-500.0,0.00046575,120]
[339873007,1728101434504,-636.70547222,0.00046575,120]
[339873008,1728101434513,-500.0,0.00046575,120]
[339873009,1728101434522,-505.23142496,0.00046575,120]
[339873010,1728101434531,-500.0,0.00046575,120]
[339873011,1728101434540,-500.0,0.00046575,120]
[339873012,1728101434549,-500.0,0.00046575,120]
[339873013,1728101434558,-503.63678707,0.00046575,120]
[339873014,1728101434567,-874.82,0.00046575,120]
[339873015,1728101434576,-874.82,0.00046575,120]
[339873016,1728101434585,-874.82,0.00046575,120]
[339873017,1728101434595,-874.82,0.00046575,120]
[339873018,1728101434604,-874.82,0.00046575,120]
[339873019,1728101434613,-874.82,0.00046575,120]
[339873020,1728101434622,-874.82,0.00046575,120]
[339873021,1728101434631,-874.82,0.00046575,120]
[339873022,1728101434641,-874.82,0.00046575,120]
[339873023,1728101434650,-874.82,0.00046575,120]
[339873024,1728101434659,-874.82,0.00046575,120]
[339873025,1728101434669,-874.82,0.00046575,120]
[339873026,1728101434678,-874.82,0.00046575,120]
[339873027,1728101434687,-874.82,0.00046575,120]
[339873028,1728101434696,-874.82,0.00046575,120]
[339873029,1728101434705,-874.82,0.00046575,120]
[339873030,1728101434715,-500.0,0.00046575,120]
[339873031,1728101434724,-500.0,0.00046575,120]
[339873032,1728101434734,-500.0,0.00046575,120]
[339873033,1728101434743,-500.0,0.00046575,120]
[339873034,1728101434752,-500.0,0.00046575,120]
[339873035,1728101434762,-500.0,0.00046575,120]
[339873036,1728101434771,-500.0,0.00046575,120]
[339873037,1728101434780,-500.0,0.00046575,120]
[339873038,1728101434790,-500.0,0.00046575,120]
[339873039,1728101434799,-500.0,0.00046575,120]
[339873040,1728101434808,-500.0,0.00046575,120]
[339873041,1728101434817,-500.0,0.00046575,120]
[339873042,1728101434827,-500.0,0.00046575,120]
[339873043,1728101434836,-500.0,0.00046575,120]
[339873044,1728101434846,-500.0,0.00046575,120]
[339873045,1728101434855,-500.0,0.00046575,120]
[339873046,1728101434864,-675.6,0.00046575,120]
[339873047,1728101434873,-675.6,0.00046575,120]
[339873048,1728101434883,-675.6,0.00046575,120]
[339873049,1728101434892,-675.6,0.00046575,120]
[339873050,1728101434901,-675.6,0.00046575,120]
[339873051,1728101434910,-675.6,0.00046575,120]
[339873052,1728101434919,-675.6,0.00046575,120]
[339873053,1728101434929,-675.6,0.00046575,120]
[339873054,1728101434938,-675.6,0.00046575,120]
[339873055,1728101434947,-500.0,0.00046575,120]
[339873056,1728101434956,-675.6,0.00046575,120]
[339873057,1728101434966,-675.6,0.00046575,120]
[339873058,1728101434975,-500.0,0.00046575,120]
[339873059,1728101434983,-675.6,0.00046575,120]
[339873060,1728101434992,-500.0,0.00046575,120]
[339873061,1728101435001,-675.6,0.00046575,120]
[339873062,1728101435010,-500.0,0.00046575,120]
[339873063,1728101435019,-675.6,0.00046575,120]
[339873064,1728101435028,-500.0,0.00046575,120]
[339873065,1728101435037,-675.6,0.00046575,120]
[339873066,1728101435046,-500.0,0.00046575,120]
[339873067,1728101435055,-675.6,0.00046575,120]
[339873068,1728101435065,-499.481,0.00046575,120]
[339873069,1728101435074,-500.0,0.00046575,120]
[339873070,1728101435083,-500.0,0.00046575,120]
[339873071,1728101435092,-500.0,0.00046575,120]
[339873072,1728101435101,-500.0,0.00046575,120]
[339873073,1728101435110,-500.0,0.00046575,120]
[339873074,1728101435120,-500.0,0.00046575,120]
[339873075,1728101435130,-500.0,0.00046575,120]
[339873076,1728101435139,-500.0,0.00046575,120]
[339873077,1728101435148,-500.0,0.00046575,120]
[339873078,1728101435158,-500.0,0.00046575,120]
[339873079,1728101435167,-688.88,0.00046575,120]
[339873080,1728101435176,-688.88,0.00046575,120]
[339873081,1728101435185,-688.88,0.00046575,120]
[339873082,1728101435193,-688.88,0.00046575,120]
[339873083,1728101435202,-688.88,0.00046575,120]
[339873084,1728101435211,-688.88,0.00046575,120]
[339873085,1728101435221,-688.88,0.00046575,120]
[339873086,1728101435229,-688.88,0.00046575,120]
[339873087,1728101435242,-688.88,0.00046575,120]
[339873088,1728101435251,-688.88,0.00046575,120]
[339873089,1728101435260,-688.88,0.00046575,120]
[339873090,1728101435269,-688.88,0.00046575,120]
[339873091,1728101435278,-688.88,0.00046575,120]
[339873092,1728101435287,-688.88,0.00046575,120]
[339873093,1728101435296,-688.88,0.00046575,120]
[339873094,1728101435305,-688.88,0.00046575,120]
[339873095,1728101435314,-500.0,0.00046575,120]
[339873096,1728101435323,-500.0,0.00046575,120]
[339873097,1728101435333,-500.0,0.00046575,120]
[339873098,1728101435342,-500.0,0.00046575,120]
[339873099,1728101435351,-500.0,0.00046575,120]
[339873100,1728101435360,-468.75349269,0.00046575,120]
[339873101,1728101435369,-500.0,0.00046575,120]
[339873102,1728101435378,-500.0,0.00046575,120]
[339873103,1728101435387,-500.0,0.00046575,120]
[339873104,1728101435396,-500.0,0.00046575,120]
[339873105,1728101435405,-174.55972291,0.00046575,120]
[339873106,1728101435416,-500.0,0.00046575,120]
[339873107,1728101435425,-500.0,0.00046575,120]
[339873108,1728101435435,-500.0,0.00046575,120]
[339873109,1728101435444,-259.14698159,0.00046575,120]
[339873110,1728101435453,-500.0,0.00046575,120]
[339873111,1728101435462,-500.0,0.00046575,120]
[339873112,1728101435472,-500.0,0.00046575,120]
[339873113,1728101435481,-500.0,0.00046575,120]
[339873114,1728101435490,-500.0,0.00046575,120]
[339873115,1728101435498,-500.0,0.00046575,120]
[339873116,1728101435508,-500.0,0.00046575,120]
[339873117,1728101435517,-500.0,0.00046575,120]
[339873118,1728101435526,-500.0,0.00046575,120]
[339873119,1728101435535,-500.0,0.00046575,120]
[339873120,1728101435544,-532.7532207,0.00046575,120]
[339873121,1728101435554,-500.0,0.00046575,120]
[339873122,1728101435562,-500.0,0.00046575,120]
[339873123,1728101435571,-264.22672003,0.00046575,120]
[339873124,1728101435581,-346.5081237,0.00046575,120]
[339873125,1728101435590,-500.0,0.00046575,120]
[339873126,1728101435599,-500.0,0.00046575,120]
[339873127,1728101435608,-500.0,0.00046575,120]
[339873128,1728101435617,-500.0,0.00046575,120]
[339873129,1728101435626,-500.0,0.00046575,120]
[339873130,1728101435635,-500.0,0.00046575,120]
[339873131,1728101435645,-500.0,0.00046575,120]
[339873132,1728101435654,-500.0,0.00046575,120]
[339873133,1728101435663,-500.0,0.00046575,120]
[339873134,1728101435672,-764.37,0.00046575,120]
[339873135,1728101435681,-764.37,0.00046575,120]
[339873136,1728101435690,-764.37,0.00046575,120]
[339873137,1728101435699,-764.37,0.00046575,120]
[339873138,1728101435708,-764.37,0.00046575,120]
[339873139,1728101435726,-764.37,0.00046575,120]
[339873140,1728101435736,-764.37,0.00046575,120]
[339873141,1728101435745,-764.37,0.00046575,120]
[339873142,1728101435754,-500.0,0.00046575,120]
[339873143,1728101435763,-495.23979435,0.00046575,120]
[339873144,1728101435772,-500.0,0.00046575,120]
[339873145,1728101435782,-500.0,0.00046575,120]
[339873146,1728101435791,-500.0,0.00046575,120]
[339873147,1728101435799,-500.0,0.00046575,120]
[339873148,1728101435809,-450.94639531,0.00046575,120]
[339873149,1728101435818,-500.0,0.00046575,120]
[339873150,1728101435827,-500.0,0.00046575,120]
[339873151,1728101435835,-500.0,0.00046575,120]
[339873152,1728101435844,-500.0,0.00046575,120]
[339873153,1728101435854,-500.0,0.00046575,120]
[339873154,1728101435863,-500.0,0.00046575,120]
[339873155,1728101435873,-500.0,0.00046575,120]
[339873156,1728101435882,-483.3788608,0.00046575,120]
[339873157,1728101435891,-500.0,0.00046575,120]
[339873158,1728101435901,-500.0,0.00046575,120]
[339873159,1728101435910,-500.0,0.00046575,120]
[339873160,1728101435919,-500.0,0.00046575,120]
[339873161,1728101435929,-500.0,0.00046575,120]
[339873162,1728101435938,-500.0,0.00046575,120]
[339873163,1728101435947,-500.0,0.00046575,120]
[339873164,1728101435956,-305.08769514,0.00046575,120]
[339873165,1728101435967,-500.0,0.00046575,120]
[339873166,1728101435976,-500.0,0.00046575,120]
[339873167,1728101435985,-500.0,0.00046575,120]
[339873168,1728101435994,-500.0,0.00046575,120]
[339873169,1728101436003,-500.0,0.00046575,120]
[339873170,1728101436012,-500.0,0.00046575,120]
[339873171,1728101436022,-500.0,0.00046575,120]
[339873172,1728101436031,-500.0,0.00046575,120]
[339873173,1728101436040,-4843.83,0.00046575,120]
[339873174,1728101436050,-4843.83,0.00046575,120]
[339873175,1728101436059,-4843.83,0.00046575,120]
[339873176,1728101436068,-4843.83,0.00046575,120]
[339873177,1728101436078,-4843.83,0.00046575,120]
[339873178,1728101436088,-4843.83,0.00046575,120]
[339873179,1728101436097,-4843.83,0.00046575,120]
[339873180,1728101436106,-4843.83,0.00046575,120]
[339873181,1728101436115,-500.0,0.00046575,120]
[339873182,1728101436124,-500.0,0.00046575,120]
[339873183,1728101436134,-500.0,0.00046575,120]
[339873184,1728101436143,-500.0,0.00046575,120]
[339873185,1728101436153,-500.0,0.00046575,120]
[339873186,1728101436163,-500.0,0.00046575,120]
[339873187,1728101436173,-500.0,0.00046575,120]
[339873188,1728101436182,-5.21720493,0.00046575,120]
[339873189,1728101436201,-300.0,0.00046575,120]
[339873190,1728101436212,-194.78279507,0.00046575,120]
[339873191,1728101436221,-99.37605138,0.00046575,120]
[339873192,1728101436231,-400.62394862,0.00046575,120]
[339873193,1728101436245,-539.04742541,0.00046575,120]
[339873194,1728101436254,-500.0,0.00046575,120]
[339873195,1728101436263,-500.0,0.00046575,120]
[339873196,1728101436272,-500.0,0.00046575,120]
[339873197,1728101436282,-231.17005197,0.00046575,120]
[339873198,1728101436298,-268.82994803,0.00046575,120]
[339873199,1728101436307,-500.0,0.00046575,120]
[339873200,1728101436317,-502.60950044,0.00046575,120]
[339873201,1728101436326,-521.54515476,0.00046575,120]
[339873202,1728101436336,-500.0,0.00046575,120]
[339873203,1728101436345,-500.0,0.00046575,120]
[339873204,1728101436354,-501.31935495,0.00046575,120]
[339873205,1728101436364,-500.0,0.00046575,120]
[339873206,1728101436372,-500.0,0.00046575,120]
[339873207,1728101436381,-518.3843659,0.00046575,120]
[339873208,1728101436391,-500.0,0.00046575,120]
[339873209,1728101436400,-500.0,0.00046575,120]
[339873210,1728101436410,-500.0,0.00046575,120]
[339873211,1728101436420,-500.0,0.00046575,120]
[339873212,1728101436429,-500.0,0.00046575,120]
[339873213,1728101436439,-500.0,0.00046575,120]
[339873214,1728101436448,-579.99558417,0.00046575,120]
[339873215,1728101436457,-500.0,0.00046575,120]
[339873216,1728101436467,-500.0,0.00046575,120]
[339873217,1728101436475,-504.32092431,0.00046575,120]
[339873218,1728101436484,-500.0,0.00046575,120]
[339873219,1728101436492,-500.0,0.00046575,120]
[339873220,1728101436501,-515.06231125,0.00046575,120]
[339873221,1728101436510,-500.0,0.00046575,120]
[339873222,1728101436519,-500.0,0.00046575,120]
[339873223,1728101436528,-500.0,0.00046575,120]
[339873224,1728101436537,-500.0,0.00046575,120]
[339873225,1728101436546,-227.40932192,0.00046575,120]
[339873226,1728101436556,-500.0,0.00046575,120]
[339873227,1728101436566,-500.0,0.00046575,120]
[339873228,1728101436575,-634.61,0.00046575,120]
[339873229,1728101436583,-500.0,0.00046575,120]
[339873230,1728101436593,-500.0,0.00046575,120]
[339873231,1728101436601,-500.0,0.00046575,120]
[339873232,1728101436611,-500.0,0.00046575,120]
[339873233,1728101436620,-500.0,0.00046575,120]
[339873234,1728101436628,-500.0,0.00046575,120]
[339873235,1728101436638,-500.0,0.00046575,120]
[339873236,1728101436647,-500.0,0.00046575,120]
[339873237,1728101436657,-500.0,0.00046575,120]
[339873238,1728101436666,-223.33231605,0.00046575,120]
[339873239,1728101436676,-500.0,0.00046575,120]
[339873240,1728101436685,-500.0,0.00046575,120]
[339873241,1728101436694,-351.41063306,0.00046575,120]
[339873242,1728101436704,-500.0,0.00046575,120]
[339873243,1728101436713,-500.0,0.00046575,120]
[339873244,1728101436722,-500.0,0.00046575,120]
[339873245,1728101436731,-500.0,0.00046575,120]
[339873246,1728101436740,-500.0,0.00046575,120]
[339873247,1728101436750,-500.0,0.00046575,120]
[339873248,1728101436759,-500.0,0.00046575,120]
[339873249,1728101436768,-500.0,0.00046575,120]
[339873250,1728101436778,-500.0,0.00046575,120]
[339873251,1728101436787,-500.0,0.00046575,120]
[339873252,1728101436796,-164.41055753,0.00046575,120]
[339873253,1728101436806,-500.0,0.00046575,120]
[339873254,1728101436815,-517.1061929,0.00046575,120]
[339873255,1728101436824,-538.25,0.00046575,120]
[339873256,1728101436833,-538.25,0.00046575,120]
[339873257,1728101436950,-538.25,0.00046575,120]
[339873258,1728101436959,-538.25,0.00046575,120]
[339873259,1728101436969,-538.25,0.00046575,120]
[339873260,1728101436978,-538.25,0.00046575,120]
[339873261,1728101436987,-538.25,0.00046575,120]
[339873262,1728101436997,-538.25,0.00046575,120]
[339873263,1728101437006,-538.25,0.00046575,120]
[339873264,1728101437015,-538.25,0.00046575,120]
[339873265,1728101437024,-538.25,0.00046575,120]
[339873266,1728101437033,-538.25,0.00046575,120]
[339873267,1728101437043,-538.25,0.00046575,120]
[339873268,1728101437052,-538.25,0.00046575,120]
[339873269,1728101437061,-538.25,0.00046575,120]
[339873270,1728101437070,-538.25,0.00046575,120]
[339873271,1728101437078,-500.0,0.00046575,2]
[339873272,1728101437088,-500.0,0.00046575,2]
[339873273,1728101437097,-500.0,0.00046575,2]
[339873274,1728101437106,-500.0,0.00046575,2]
[339873275,1728101437115,-500.0,0.00046575,2]
[339873276,1728101437124,-500.0,0.00046575,2]
[339873277,1728101437132,-499.84863145,0.00046575,2]
[339873278,1728101437142,-500.0,0.00046575,120]
[339873279,1728101437150,-500.0,0.00046575,120]
[339873280,1728101437159,-500.0,0.00046575,120]
[339873281,1728101437168,-500.0,0.00046575,120]
[339873282,1728101437178,-500.0,0.00046575,120]
[339873283,1728101437187,-180.05856579,0.00046575,120]
[339873284,1728101437196,-500.0,0.00046575,120]
[339873285,1728101437205,-500.0,0.00046575,120]
[339873286,1728101437214,-502.7079281,0.00046575,120]
[339873287,1728101437223,-500.0,0.00046575,120]
[339873288,1728101437232,-500.0,0.00046575,120]
[339873289,1728101437241,-504.56584968,0.00046575,120]
[339873290,1728101437250,-500.0,0.00046575,120]
[339873291,1728101437259,-500.0,0.00046575,120]
[339873292,1728101437268,-500.0,0.00046575,120]
[339873293,1728101437277,-500.0,0.00046575,120]
[339873294,1728101437286,-500.0,0.00046575,120]
[339873295,1728101437296,-500.0,0.00046575,120]
[339873296,1728101437305,-500.0,0.00046575,120]
[339873297,1728101437314,-500.0,0.00046575,120]
[339873298,1728101437323,-500.0,0.00046575,120]
[339873299,1728101437333,-526.19332951,0.00046575,120]
[339873300,1728101437342,-513.52,0.00046575,120]
[339873301,1728101437352,-513.52,0.00046575,120]
[339873302,1728101437361,-513.52,0.00046575,120]
[339873303,1728101437370,-513.52,0.00046575,120]
[339873304,1728101437379,-513.52,0.00046575,120]
[339873305,1728101437388,-513.52,0.00046575,120]
[339873306,1728101437397,-513.52,0.00046575,120]
[339873307,1728101437406,-513.52,0.00046575,120]
[339873308,1728101437415,-513.52,0.00046575,120]
[339873309,1728101437424,-513.52,0.00046575,120]
[339873310,1728101437434,-513.52,0.00046575,120]
[339873311,1728101437443,-513.52,0.00046575,120]
[339873312,1728101437452,-513.52,0.00046575,120]
[339873313,1728101437462,-513.52,0.00046575,120]
[339873314,1728101437472,-513.52,0.00046575,120]
[339873315,1728101437481,-513.52,0.00046575,120]
[339873316,1728101437491,-500.0,0.00046575,120]
[339873317,1728101437500,-279.61,0.00046575,120]
[339873318,1728101437510,-500.0,0.00046575,120]
[339873319,1728101437519,-500.0,0.00046575,120]
[339873320,1728101437528,-279.6,0.00046575,120]
[339873321,1728101437537,-500.0,0.00046575,120]
[339873322,1728101437547,-175.15,0.00046575,120]
[339873323,1728101437556,-617.22,0.00046575,120]
[339873324,1728101437565,-633.05,0.00046575,120]
[339873325,1728101437574,-500.0,0.00046575,120]
[339873326,1728101437583,-314.45,0.00046575,120]
[339873327,1728101437592,-500.0,0.00046575,120]
[339873328,1728101437602,-500.0,0.00046575,120]
[339873329,1728101437612,-338.8,0.00046575,120]